bitfinex-derivatives/quotes_BTCF0:USTF0_20230402
["timestamp","ask_amount","ask_price","bid_price","bid_amount"]
[1680451009563,0.16868633,28125.0,28124.0,0.02064386]
[1680451010058,0.001,28125.0,28124.0,0.37434386]
[1680451013764,0.12887617,28125.0,28124.0,0.37434386]
[1680451020568,0.12887617,28125.0,28124.0,0.37417864]
[1680451021463,0.12887617,28125.0,28124.0,0.02047864]
[1680451021763,0.21868633,28125.0,28124.0,0.02047864]
[1680451022163,0.26108633,28125.0,28124.0,0.02047864]
[1680451023969,0.0934,28125.0,28124.0,0.02047864]
[1680451024768,0.26108633,28125.0,28124.0,0.00183478]
[1680451025559,0.001,28125.0,28124.0,0.38773478]
[1680451025764,0.001,28125.0,28124.0,0.47303478]
[1680451025977,0.001,28125.0,28124.0,0.49352211]
[1680451027164,0.001,28125.0,28124.0,0.37622211]
[1680451028369,0.001,28125.0,28124.0,0.37638733]
[1680451034971,0.001,28125.0,28124.0,0.42968733]
[1680451040593,0.12771129,28136.0,28129.0,1.4556]
[1680451040785,0.12771129,28139.0,28135.0,0.708]
[1680451040987,0.12771129,28143.0,28138.0,0.4073]
[1680451041190,0.12771129,28145.0,28142.0,0.354]
[1680451041393,0.12771129,28145.0,28144.0,0.0533]
[1680451042094,0.12771129,28146.0,28144.0,0.0533]
[1680451042291,0.12771129,28146.0,28145.0,0.354]
[1680451042487,0.17771129,28146.0,28145.0,0.354]
[1680451042692,0.17771129,28146.0,28145.0,0.3007]
[1680451043093,0.17771129,28146.0,28145.0,0.3537]
[1680451043800,0.05,28146.0,28145.0,0.3537]
[1680451044395,0.05,28146.0,28145.0,0.3557]
[1680451044798,0.10346583,28147.0,28145.0,0.3557]
[1680451044997,0.10346583,28147.0,28146.0,0.0528]
[1680451045497,0.05346583,28147.0,28146.0,0.0528]
[1680451045697,0.05,28148.0,28146.0,0.0528]
[1680451045897,0.05,28148.0,28145.0,0.3027]
[1680451046299,0.05,28148.0,28146.0,0.0533]
[1680451046491,0.05,28148.0,28145.0,0.3027]
[1680451046492,0.10286732,28148.0,28147.0,0.1065]
[1680451046695,0.05,28148.0,28147.0,0.1065]
[1680451046892,0.05,28148.0,28145.0,0.3027]
[1680451047099,0.05,28148.0,28145.0,0.3007]
[1680451047306,0.05,28148.0,28146.0,0.002]
[1680451047599,0.05,28148.0,28145.0,0.3007]
[1680451047902,0.05,28148.0,28147.0,0.002]
[1680451048100,0.05200281,28149.0,28147.0,0.1086]
[1680451048304,0.05,28151.0,28148.0,0.3535]
[1680451048602,0.05,28151.0,28148.0,0.3007]
[1680451049595,0.10412714,28151.0,28148.0,0.3007]
[1680451049799,0.05,28151.0,28148.0,0.3007]
[1680451050198,0.05,28151.0,28148.0,0.3027]
[1680451050898,0.05,28151.0,28148.0,0.002]
[1680451050899,0.0533,28149.0,28148.0,0.002]
[1680451051102,0.1033,28149.0,28148.0,0.002]
[1680451051304,0.05,28149.0,28148.0,0.002]
[1680451051505,0.05,28149.0,28148.0,0.04046627]
[1680451053198,0.05,28149.0,28148.0,0.09376627]
[1680451053602,0.05,28149.0,28148.0,0.04046627]
[1680451053794,0.1033,28149.0,28148.0,0.04046627]
[1680451054404,0.05,28149.0,28148.0,0.04046627]
[1680451054603,0.05,28149.0,28148.0,0.09376627]
[1680451055700,0.1033,28149.0,28148.0,0.04046627]
[1680451055893,0.05,28149.0,28148.0,0.04046627]
[1680451056505,0.1033,28149.0,28148.0,0.04046627]
[1680451056799,0.05,28149.0,28148.0,0.04046627]
[1680451057897,0.05,28149.0,28148.0,0.09326627]
[1680451059400,0.05,28149.0,28148.0,0.04046627]
[1680451065711,0.05,28149.0,28148.0,0.09376627]
[1680451066705,0.05,28149.0,28148.0,0.04046627]
[1680451067312,0.1032,28150.0,28148.0,0.04046627]
[1680451067517,0.1032,28150.0,28148.0,0.002]
[1680451076614,0.10427628,28151.0,28149.0,0.0533]
[1680451076615,0.05427628,28151.0,28149.0,0.0533]
[1680451076817,0.05,28153.0,28150.0,0.3007]
[1680451077122,0.0533,28152.0,28151.0,0.04292538]
[1680451078120,0.0533,28152.0,28151.0,0.04492538]
[1680451079316,0.0533,28152.0,28151.0,0.002]
[1680451080012,0.05,28151.0,28147.0,0.3007]
[1680451080214,0.0533,28149.0,28148.0,0.0425902]
[1680451080618,0.0533,28149.0,28148.0,0.0925902]
[1680451080922,0.0533,28149.0,28148.0,0.0425902]
[1680451081118,0.002,28149.0,28148.0,0.0445902]
[1680451081314,0.1053,28149.0,28148.0,0.0445902]
[1680451082126,0.05,28148.0,28138.0,0.3007]
[1680451082427,0.0533,28144.0,28139.0,0.05]
[1680451082718,0.0533,28140.0,28138.0,0.3007]
[1680451082918,0.1029,28139.0,28134.0,0.3007]
[1680451083117,0.0533,28136.0,28134.0,0.3007]
[1680451083316,0.0533,28135.0,28134.0,0.3007]
[1680451083521,0.0533,28135.0,28131.0,0.3007]
[1680451084021,0.05,28134.0,28129.0,0.0533]
[1680451084622,0.017,28135.0,28133.0,0.0533]
[1680451084921,0.1202,28135.0,28132.0,0.05]
[1680451085417,0.1202,28135.0,28131.0,0.6024]
[1680451085718,0.027,28134.0,28132.0,0.63780748]
[1680451085922,0.027,28134.0,28133.0,0.05]
[1680451086114,0.1032,28135.0,28133.0,0.05]
[1680451086315,0.1302,28135.0,28131.0,0.6024]
[1680451086515,0.1302,28135.0,28132.0,0.63783497]
[1680451086721,0.024,28134.0,28133.0,0.051]
[1680451086921,0.074,28134.0,28133.0,0.051]
[1680451087124,0.074,28134.0,28133.0,0.001]
[1680451087523,0.05,28134.0,28131.0,0.3017]
[1680451089125,0.074,28134.0,28133.0,0.001]
[1680451089625,0.074,28134.0,28133.0,0.00943279]
[1680451090121,0.024,28134.0,28133.0,0.01043279]
[1680451090329,0.074,28134.0,28133.0,0.06373279]
[1680451090525,0.024,28134.0,28133.0,0.06373279]
[1680451092129,0.024,28134.0,28133.0,0.01043279]
[1680451094420,0.024,28134.0,28133.0,0.31113279]
[1680451096634,0.024,28134.0,28133.0,0.36423279]
[1680451097027,0.053,28139.0,28134.0,0.05]
[1680451097237,0.05219539,28140.0,28138.0,0.3539]
[1680451097429,0.0533,28143.0,28139.0,0.05]
[1680451097626,0.0533,28143.0,28142.0,0.3007]
[1680451097827,0.05,28145.0,28142.0,0.3007]
[1680451098825,0.05,28145.0,28142.0,0.3027]
[1680451099833,0.0533,28146.0,28142.0,0.3007]
[1680451100035,0.0533,28146.0,28142.0,0.3027]
[1680451101034,0.014,28145.0,28142.0,0.3027]
[1680451101229,0.064,28145.0,28142.0,0.3027]
[1680451101532,0.05,28145.0,28142.0,0.3027]
[1680451101833,0.05,28145.0,28142.0,0.3007]
[1680451102036,0.0533,28144.0,28142.0,0.3027]
[1680451102937,0.05,28143.0,28142.0,0.3027]
[1680451103634,0.05,28143.0,28142.0,0.002]
[1680451104026,0.05,28143.0,28142.0,0.01453383]
[1680451104428,0.05,28143.0,28142.0,0.01253383]
[1680451104627,0.064,28143.0,28142.0,0.01453383]
[1680451104823,0.014,28143.0,28142.0,0.01453383]
[1680451106832,0.1169,28143.0,28142.0,0.01453383]
[1680451107531,0.1169,28143.0,28142.0,0.002]
[1680451108030,0.17023192,28143.0,28142.0,0.002]
[1680451110236,0.05,28142.0,28138.0,0.3007]
[1680451110639,0.05,28142.0,28139.0,0.01253101]
[1680451110943,0.05,28142.0,28139.0,0.06253101]
[1680451111135,0.05,28142.0,28139.0,0.01253101]
[1680451111627,0.065,28142.0,28139.0,0.01453101]
[1680451114140,0.015,28142.0,28139.0,0.01453101]
[1680451116434,0.015,28142.0,28141.0,0.3007]
[1680451117444,0.10663192,28143.0,28141.0,0.3007]
[1680451117644,0.015,28142.0,28141.0,0.3027]
[1680451117845,0.065,28142.0,28141.0,0.3027]
[1680451118245,0.015,28142.0,28141.0,0.3027]
[1680451124849,0.015,28142.0,28141.0,0.002]
[1680451125047,0.0683,28142.0,28141.0,0.002]
[1680451125547,0.0683,28142.0,28141.0,0.01452461]
[1680451125744,0.0683,28142.0,28141.0,0.002]
[1680451126542,0.1183,28142.0,28141.0,0.002]
[1680451127145,0.0683,28142.0,28141.0,0.002]
[1680451127739,0.1183,28142.0,28141.0,0.002]
[1680451132152,0.05,28141.0,28134.0,0.3007]
[1680451132352,0.0533,28138.0,28134.0,0.3007]
[1680451132547,0.05,28137.0,28134.0,0.3007]
[1680451132752,0.05,28141.0,28135.0,0.3007]
[1680451132959,0.065,28142.0,28138.0,0.3007]
[1680451133149,0.1181,28142.0,28139.0,0.05]
[1680451133654,0.0681,28142.0,28138.0,0.3007]
[1680451133842,0.02,28141.0,28139.0,0.05]
[1680451134252,0.05,28141.0,28139.0,0.051]
[1680451134753,0.02,28141.0,28139.0,0.051]
[1680451134954,0.07,28141.0,28139.0,0.051]
[1680451135149,0.02,28141.0,28139.0,0.001]
[1680451135355,0.02,28141.0,28139.0,0.051]
[1680451135555,0.02,28141.0,28140.0,0.05]
[1680451136852,0.02,28141.0,28140.0,0.001]
[1680451140554,0.02,28141.0,28140.0,0.01362772]
[1680451140757,0.02,28141.0,28140.0,0.001]
[1680451143552,0.07,28141.0,28140.0,0.001]
[1680451144153,0.2403774,28141.0,28140.0,0.001]
[1680451144460,0.2935774,28141.0,28140.0,0.001]
[1680451144654,0.1232,28141.0,28140.0,0.001]
[1680451145464,0.053,28140.0,28134.0,0.3007]
[1680451145753,0.0532,28136.0,28134.0,0.3007]
[1680451146158,0.05,28135.0,28134.0,0.3007]
[1680451147061,0.05,28135.0,28134.0,0.3057]
[1680451148260,0.052,28135.0,28134.0,0.3057]
[1680451148463,0.002,28135.0,28134.0,0.3057]
[1680451148662,0.069,28135.0,28134.0,0.3007]
[1680451149167,0.019,28135.0,28134.0,0.3007]
[1680451151361,0.013,28135.0,28134.0,0.3007]
[1680451153258,0.013,28135.0,28134.0,0.30967713]
[1680451154769,0.06515721,28135.0,28134.0,0.30967713]
[1680451156560,0.013,28135.0,28134.0,0.30967713]
[1680451160065,0.05,28140.0,28135.0,0.05]
[1680451160371,0.05,28141.0,28139.0,0.3537]
[1680451161465,0.07,28141.0,28139.0,0.3557]
[1680451162166,0.02,28141.0,28139.0,0.3027]
[1680451166679,0.0533,28140.0,28139.0,0.002]
[1680451166866,0.1033,28140.0,28139.0,0.002]
[1680451168070,0.1033,28140.0,28135.0,0.3007]
[1680451168271,0.1233,28140.0,28139.0,0.002]
[1680451168969,0.0733,28140.0,28139.0,0.00979485]
[1680451172175,0.02,28140.0,28139.0,0.00979485]
[1680451173683,0.02,28140.0,28139.0,0.41339485]
[1680451173878,0.02,28140.0,28139.0,0.36339485]
[1680451174072,0.05,28142.0,28140.0,0.05]
[1680451174477,0.05,28142.0,28141.0,0.00830234]
[1680451175281,0.05,28142.0,28139.0,0.3556]
[1680451175482,0.05,28142.0,28140.0,0.002]
[1680451175985,0.05,28142.0,28141.0,0.002]
[1680451176386,0.05,28142.0,28140.0,0.002]
[1680451176780,0.05,28142.0,28139.0,0.3536]
[1680451176986,0.05,28142.0,28141.0,0.002]
[1680451178279,0.05,28142.0,28140.0,0.002]
[1680451178480,0.1033,28142.0,28140.0,0.002]
[1680451178678,0.1033,28142.0,28141.0,0.002]
[1680451179488,0.05,28142.0,28141.0,0.002]
[1680451179680,0.05,28142.0,28140.0,0.052]
[1680451179880,0.05,28142.0,28141.0,0.00766626]
[1680451180088,0.05,28142.0,28141.0,0.00966626]
[1680451181284,0.05,28142.0,28141.0,0.00766626]
[1680451181690,0.05,28142.0,28141.0,0.002]
[1680451182078,0.1033,28142.0,28141.0,0.002]
[1680451182387,0.1033,28142.0,28141.0,0.00966517]
[1680451183182,0.1033,28142.0,28141.0,0.31036517]
[1680451183385,0.0533,28142.0,28141.0,0.31036517]
[1680451185497,0.1033,28142.0,28141.0,0.31036517]
[1680451185996,0.1033,28142.0,28141.0,0.00966517]
[1680451186398,0.1033,28142.0,28141.0,0.002]
[1680451186801,0.4569,28142.0,28141.0,0.002]
[1680451194200,0.58468385,28142.0,28141.0,0.002]
[1680451194394,0.4569,28142.0,28141.0,0.002]
[1680451194595,0.58468385,28142.0,28141.0,0.002]
[1680451194897,0.05,28141.0,28133.0,0.3007]
[1680451195098,0.05,28136.0,28133.0,0.3007]
[1680451195295,0.05,28136.0,28134.0,0.05765955]
[1680451195498,0.05,28136.0,28134.0,0.00765955]
[1680451196699,0.0529,28137.0,28134.0,0.00765955]
[1680451197203,0.0529,28137.0,28134.0,0.01765955]
[1680451197510,0.0539,28137.0,28134.0,0.00865955]
[1680451198401,0.0539,28137.0,28136.0,0.3007]
[1680451199000,0.0529,28137.0,28136.0,0.3007]
[1680451199201,0.0629,28137.0,28136.0,0.3007]
[1680451200201,0.0609,28137.0,28136.0,0.3017]
[1680451201306,0.0609,28137.0,28136.0,0.001]
[1680451202112,0.008,28137.0,28136.0,0.001]
[1680451206206,0.008,28137.0,28136.0,0.00864154]
[1680451206601,0.3616,28137.0,28136.0,0.00864154]
[1680451206808,0.05,28136.0,28130.0,0.0528]
[1680451207010,0.0531,28135.0,28130.0,0.0528]
[1680451207303,0.17779091,28136.0,28127.0,0.3007]
[1680451207304,0.3934,28134.0,28132.0,0.0425]
[1680451207497,0.0927,28133.0,28128.0,0.0924]
[1680451207701,0.0425,28131.0,28128.0,0.0924]
[1680451208095,0.0425,28131.0,28128.0,0.0424]
[1680451209407,0.0425,28131.0,28128.0,0.0474]
[1680451210709,0.3432,28131.0,28128.0,0.0474]
[1680451211606,0.39770198,28131.0,28128.0,0.0474]
[1680451211800,0.05,28130.0,28128.0,0.0474]
[1680451212204,0.05,28130.0,28129.0,0.0427]
[1680451212908,0.064,28130.0,28129.0,0.0427]
[1680451213409,0.064,28130.0,28129.0,0.0437]
[1680451213814,0.05,28130.0,28129.0,0.0427]
[1680451214109,0.064,28130.0,28129.0,0.0437]
[1680451214310,0.06556953,28130.0,28129.0,0.0437]
[1680451214512,0.014,28130.0,28129.0,0.0437]
[1680451214708,0.0563,28130.0,28129.0,0.001]
[1680451215008,0.0923,28130.0,28127.0,0.3007]
[1680451215204,0.064,28130.0,28129.0,0.001]
[1680451215404,0.1067,28130.0,28129.0,0.001]
[1680451216006,0.1107,28130.0,28129.0,0.002]
[1680451217614,0.1107,28130.0,28127.0,0.3007]
[1680451217809,0.068,28130.0,28129.0,0.002]
[1680451218112,0.0927,28130.0,28127.0,0.3007]
[1680451218412,0.068,28130.0,28129.0,0.002]
[1680451218615,0.1116,28130.0,28129.0,0.002]
[1680451219512,0.019,28130.0,28129.0,0.0427]
[1680451219712,0.019,28130.0,28129.0,0.0425]
[1680451220608,0.05450198,28131.0,28130.0,0.0427]
[1680451220914,0.05,28136.0,28130.0,0.5214]
[1680451221113,0.0924,28137.0,28135.0,0.0427]
[1680451221316,0.0424,28137.0,28135.0,0.0927]
[1680451221613,0.0424,28137.0,28135.0,0.0427]
[1680451221812,0.0924,28137.0,28135.0,0.0427]
[1680451222113,0.1203,28137.0,28135.0,0.002]
[1680451222511,0.1113,28137.0,28135.0,0.001]
[1680451224012,0.1173,28137.0,28135.0,0.001]
[1680451224515,0.418,28137.0,28135.0,0.001]
[1680451230527,0.0533,28136.0,28135.0,0.001]
[1680451230722,0.1033,28136.0,28135.0,0.001]
[1680451231113,0.05,28135.0,28129.0,0.3538]
[1680451231419,0.05,28133.0,28129.0,0.3538]
[1680451231613,0.05,28133.0,28129.0,0.0531]
[1680451232213,0.1029,28133.0,28128.0,0.1029]
[1680451232406,0.1029,28133.0,28128.0,0.0529]
[1680451232815,0.1029,28133.0,28129.0,0.001]
[1680451233313,0.1259,28133.0,28128.0,0.0539]
[1680451233517,0.00273614,28132.0,28128.0,0.0539]
[1680451233714,0.05273614,28132.0,28130.0,0.3007]
[1680451234021,0.00273614,28132.0,28131.0,0.05]
[1680451234406,0.00273614,28132.0,28130.0,0.3007]
[1680451235622,0.02373614,28132.0,28130.0,0.3017]
[1680451236019,0.01673614,28132.0,28130.0,0.3017]
[1680451236520,0.00973614,28132.0,28130.0,0.3017]
[1680451242017,0.00973614,28132.0,28130.0,0.001]
[1680451242217,0.05973614,28132.0,28130.0,0.001]
[1680451246122,0.00973614,28132.0,28131.0,0.0528]
[1680451246428,0.00973614,28132.0,28131.0,0.4035]
[1680451247116,0.00973614,28132.0,28131.0,0.4045]
[1680451247519,0.00973614,28132.0,28131.0,0.3545]
[1680451262136,0.00973614,28132.0,28131.0,0.355]
[1680451265847,0.00973614,28132.0,28131.0,0.6557]
[1680451266248,0.00973614,28132.0,28131.0,0.7089]
[1680451269140,0.00373614,28132.0,28131.0,0.7139]
[1680451271742,0.00273614,28132.0,28131.0,0.7079]
[1680451271949,0.001,28132.0,28131.0,0.7139]
[1680451272243,0.00376506,28132.0,28131.0,0.6546]
[1680451272448,0.00376506,28132.0,28131.0,0.6606]
[1680451273442,0.001,28132.0,28131.0,0.6606]
[1680451273642,0.001,28132.0,28131.0,0.6666]
[1680451274043,0.001,28132.0,28131.0,0.6686]
[1680451274044,0.002,28132.0,28131.0,0.6686]
[1680451274254,0.002,28132.0,28123.0,0.05794906]
[1680451274255,0.6686,28131.0,28123.0,0.05794906]
[1680451274447,0.6686,28131.0,28117.0,0.12766605]
[1680451274448,0.0424893,28119.0,28117.0,0.12766605]
[1680451274649,0.6014,28118.0,28108.0,0.2935107]
[1680451274951,0.3007,28112.0,28110.0,0.2021]
[1680451275249,0.3007,28112.0,28111.0,0.50311066]
[1680451275445,0.3007,28114.0,28111.0,0.80381066]
[1680451275751,0.003,28118.0,28113.0,0.1062]
[1680451275947,0.053,28118.0,28117.0,0.0533]
[1680451276151,0.003,28118.0,28117.0,0.0533]
[1680451277249,0.4071893,28119.0,28117.0,0.0533]
[1680451277451,0.002,28118.0,28117.0,0.0543]
[1680451277656,0.052,28118.0,28117.0,0.0543]
[1680451278350,0.052,28118.0,28117.0,0.001]
[1680451279254,0.07215198,28118.0,28114.0,0.0533]
[1680451279446,0.3007,28115.0,28114.0,0.0533]
[1680451280554,0.3037,28115.0,28114.0,0.0533]
[1680451281848,0.003,28115.0,28114.0,0.0533]
[1680451282044,0.003,28115.0,28114.0,0.1061]
[1680451284949,0.3007,28119.0,28114.0,0.3086]
[1680451285152,0.3007,28119.0,28118.0,0.10583043]
[1680451285456,0.1064893,28120.0,28118.0,0.10583043]
[1680451285653,0.1064893,28120.0,28119.0,0.0533]
[1680451286652,0.1074893,28120.0,28119.0,0.0553]
[1680451286956,0.12100395,28120.0,28119.0,0.0553]
[1680451287356,0.17100395,28120.0,28119.0,0.002]
[1680451288258,0.17100395,28120.0,28119.0,0.016]
[1680451288457,0.17100395,28120.0,28119.0,0.0693]
[1680451288659,0.12100395,28120.0,28119.0,0.0623]
[1680451291162,0.12100395,28120.0,28119.0,0.1156]
[1680451292264,0.12100395,28120.0,28119.0,0.0623]
[1680451292960,0.17100395,28120.0,28119.0,0.0623]
[1680451294465,0.17100395,28120.0,28119.0,0.009]
[1680451298761,0.22430395,28120.0,28119.0,0.00839596]
[1680451299070,0.22430395,28120.0,28119.0,0.00772485]
[1680451299259,0.17100395,28120.0,28119.0,0.00699997]
[1680451299655,0.17100395,28120.0,28119.0,0.00628077]
[1680451299860,0.17100395,28120.0,28119.0,0.00556717]
[1680451300061,0.17100395,28120.0,28119.0,0.00473736]
[1680451300469,0.17100395,28120.0,28119.0,0.00405825]
[1680451300669,0.17000395,28120.0,28118.0,0.0533]
[1680451300873,0.17000395,28120.0,28119.0,0.00133696]
[1680451301169,0.42070395,28120.0,28119.0,0.00133696]
[1680451301357,0.47070395,28120.0,28119.0,0.00072823]
[1680451301562,0.42070395,28120.0,28119.0,8.559e-05]
[1680451301867,0.05,28119.0,28118.0,0.0533]
[1680451302068,0.05,28119.0,28117.0,0.0531]
[1680451302665,0.4071893,28120.0,28117.0,0.0531]
[1680451303067,0.4071893,28120.0,28118.0,0.002]
[1680451303464,0.001,28119.0,28117.0,0.0621]
[1680451303761,0.051,28119.0,28117.0,0.0621]
[1680451303959,0.3507,28119.0,28118.0,0.002]
[1680451304362,0.3007,28119.0,28117.0,0.0531]
[1680451304561,0.3517,28119.0,28117.0,0.0621]
[1680451304961,0.1033,28118.0,28113.0,0.1029]
[1680451305164,0.3007,28114.0,28113.0,0.0529]
[1680451305559,0.3007,28114.0,28111.0,0.3507]
[1680451306167,0.05,28118.0,28114.0,0.106]
[1680451306365,0.3517,28119.0,28117.0,0.009]
[1680451306566,0.05,28118.0,28117.0,0.009]
[1680451306766,0.05,28118.0,28116.0,0.0529]
[1680451307368,0.05,28118.0,28117.0,0.009]
[1680451307769,0.051,28118.0,28116.0,0.0629]
[1680451308272,0.001,28118.0,28116.0,0.0629]
[1680451308973,0.6014,28119.0,28116.0,0.0529]
[1680451309175,0.075,28118.0,28117.0,0.001]
[1680451309474,0.07306334,28118.0,28116.0,0.0539]
[1680451309973,0.02306334,28118.0,28116.0,0.0539]
[1680451310170,0.01206334,28118.0,28116.0,0.0529]
[1680451310474,0.02306334,28118.0,28117.0,0.001]
[1680451310673,0.02306334,28118.0,28116.0,0.0529]
[1680451310674,0.01206334,28118.0,28116.0,0.0529]
[1680451310868,0.02306334,28118.0,28116.0,0.0539]
[1680451312064,0.02306334,28118.0,28117.0,0.0533]
[1680451312972,0.02306334,28118.0,28117.0,0.0543]
[1680451314974,0.01206334,28118.0,28117.0,0.0533]
[1680451321278,0.01206334,28118.0,28115.0,0.0529]
[1680451321683,0.01206334,28118.0,28117.0,0.0533]
[1680451322179,0.01206334,28118.0,28117.0,0.1033]
[1680451322578,0.1064893,28120.0,28117.0,0.49794435]
[1680451322773,0.1064893,28120.0,28119.0,0.0533]
[1680451323180,0.1064893,28120.0,28119.0,0.4581147]
[1680451324286,0.11647751,28120.0,28119.0,0.4581147]
[1680451325280,0.14147751,28120.0,28119.0,0.4591147]
[1680451326787,0.44217751,28120.0,28119.0,0.4058147]
[1680451328488,0.44217751,28120.0,28119.0,0.001]
[1680451329093,0.49217751,28120.0,28119.0,0.001]
[1680451333191,0.44217751,28120.0,28119.0,0.001]
[1680451335393,0.49217751,28120.0,28119.0,0.001]
[1680451335893,0.61996842,28120.0,28119.0,0.001]
[1680451336289,0.67326842,28120.0,28119.0,0.001]
[1680451336997,0.61996842,28120.0,28119.0,0.001]
[1680451337194,0.49217751,28120.0,28119.0,0.001]
[1680451337692,0.61996842,28120.0,28119.0,0.001]
[1680451338197,0.49217751,28120.0,28119.0,0.001]
[1680451338398,0.79287751,28120.0,28119.0,0.001]
[1680451338599,0.92066842,28120.0,28119.0,0.001]
[1680451339397,0.92066842,28120.0,28119.0,0.00036958]
[1680451339699,0.05,28119.0,28118.0,0.0533]
[1680451341101,0.067,28119.0,28118.0,0.0533]
[1680451341798,0.017,28119.0,28118.0,0.0533]
[1680451342199,0.017,28119.0,28118.0,0.085]
[1680451345698,0.017,28119.0,28118.0,0.1702]
[1680451347103,0.02379936,28119.0,28118.0,0.0533]
[1680451347298,0.02379936,28119.0,28118.0,0.1033]
[1680451348200,0.02379936,28119.0,28118.0,0.0533]
[1680451348500,0.02379936,28119.0,28118.0,0.1562]
[1680451348803,0.02379936,28119.0,28118.0,0.56703594]
[1680451349098,0.01791946,28119.0,28118.0,0.56703594]
[1680451350609,0.3007,28123.0,28118.0,0.56703594]
[1680451350805,0.3007,28123.0,28122.0,0.1032]
[1680451350993,0.3007,28123.0,28122.0,0.0532]
[1680451351604,0.7996,28127.0,28122.0,0.4496107]
[1680451351902,0.05,28127.0,28126.0,0.1058]
[1680451352303,0.1564893,28128.0,28126.0,0.1058]
[1680451352605,0.1064893,28128.0,28127.0,0.0533]
[1680451352794,0.1064893,28128.0,28127.0,0.44036566]
[1680451354207,0.1264893,28128.0,28127.0,0.44136566]
[1680451354709,0.1264893,28128.0,28127.0,0.49136566]
[1680451354906,0.02,28128.0,28127.0,0.54436566]
[1680451355203,0.08231367,28131.0,28128.0,0.05]
[1680451355406,0.08231367,28131.0,28130.0,0.1066]
[1680451355805,0.08231367,28131.0,28130.0,0.49381592]
[1680451356604,0.08231367,28131.0,28130.0,0.49944618]
[1680451357107,0.08231367,28131.0,28130.0,0.50144618]
[1680451361300,0.08231367,28134.0,28130.0,0.50144618]
[1680451361508,0.0536221,28135.0,28131.0,0.05]
[1680451361806,0.3007,28136.0,28134.0,0.1058]
[1680451362003,0.3007,28136.0,28135.0,0.1033]
[1680451362206,0.3007,28136.0,28135.0,0.45254802]
[1680451363205,0.08231367,28137.0,28135.0,0.45254802]
[1680451363401,0.08231367,28137.0,28136.0,0.0528]
[1680451365312,0.08231367,28137.0,28136.0,0.0548]
[1680451366404,0.08231367,28137.0,28136.0,0.0553]
[1680451367907,0.38301367,28137.0,28136.0,0.0548]
[1680451368510,0.38301367,28137.0,28136.0,0.002]
[1680451368910,0.38301367,28137.0,28136.0,0.0548]
[1680451369315,0.38301367,28137.0,28136.0,0.07010792]
[1680451370315,0.38301367,28137.0,28136.0,0.07060792]
[1680451378218,0.38301367,28137.0,28136.0,0.01730792]
[1680451378424,0.38301367,28137.0,28136.0,0.0549]
[1680451378813,0.43631367,28137.0,28136.0,0.002]
[1680451380116,0.38301367,28137.0,28136.0,0.0553]
[1680451380423,0.43621367,28137.0,28136.0,0.002]
[1680451380627,0.38301367,28137.0,28136.0,0.002]
[1680451380826,0.38301367,28137.0,28136.0,0.0553]
[1680451381122,0.38301367,28137.0,28136.0,0.06808874]
[1680451381719,0.08231367,28137.0,28136.0,0.06808874]
[1680451382118,0.08231367,28137.0,28136.0,0.055]
[1680451382916,0.08231367,28137.0,28136.0,0.06778799]
[1680451384124,0.08231367,28137.0,28136.0,0.06758799]
[1680451390030,0.08231367,28138.0,28136.0,0.06758799]
[1680451390218,0.08231367,28138.0,28137.0,0.0529]
[1680451390422,0.08231367,28138.0,28137.0,0.06568477]
[1680451392324,0.08231367,28138.0,28137.0,0.06768477]
[1680451392523,0.08231367,28138.0,28137.0,0.12088477]
[1680451394027,0.08231367,28141.0,28137.0,0.51251953]
[1680451394225,0.08231367,28141.0,28139.0,0.0528]
[1680451394426,0.08231367,28141.0,28140.0,0.053]
[1680451394627,0.08231367,28141.0,28140.0,0.103]
[1680451395332,0.08231367,28141.0,28140.0,0.053]
[1680451395527,0.08231367,28141.0,28140.0,0.0533]
[1680451396334,0.08231367,28141.0,28140.0,0.0553]
[1680451397731,0.08231367,28141.0,28140.0,0.0548]
[1680451398322,0.08231367,28141.0,28140.0,0.1085]
[1680451398723,0.08231367,28141.0,28140.0,0.0552]
[1680451399335,0.08231367,28141.0,28140.0,0.06798092]
[1680451401723,0.08231367,28141.0,28140.0,0.11798092]
[1680451402033,0.08231367,28141.0,28140.0,0.06778092]
[1680451402823,0.38301367,28143.0,28140.0,0.06778092]
[1680451403027,0.38301367,28143.0,28142.0,0.0532]
[1680451403222,0.38301367,28143.0,28142.0,0.1032]
[1680451403426,0.38301367,28143.0,28142.0,0.0532]
[1680451404926,0.38301367,28143.0,28142.0,0.0552]
[1680451406731,0.38301367,28143.0,28142.0,0.00185444]
[1680451407235,0.43301367,28143.0,28142.0,0.04415444]
[1680451409033,0.38301367,28143.0,28142.0,0.04415444]
[1680451409331,0.43301367,28143.0,28142.0,0.04415444]
[1680451409737,0.38301367,28143.0,28142.0,0.04415444]
[1680451409936,0.43301367,28143.0,28142.0,0.04415444]
[1680451412133,0.60340458,28143.0,28140.0,0.0426]
[1680451412331,0.08231367,28138.0,28137.0,0.0423]
[1680451412535,0.42521367,28138.0,28137.0,0.0423]
[1680451415738,0.42721367,28138.0,28137.0,0.0443]
[1680451417338,0.08231367,28134.0,28133.0,0.0426]
[1680451417536,0.38301367,28134.0,28133.0,0.0426]
[1680451417738,0.38301367,28134.0,28133.0,0.05251383]
[1680451418641,0.43301367,28134.0,28133.0,0.05251383]
[1680451422039,0.47561367,28134.0,28133.0,0.00991383]
[1680451425744,0.47561367,28134.0,28132.0,0.0424]